bitfinex/quotes_SOLUSD_20251119
["timestamp","ask_amount","ask_price","bid_price","bid_amount"]
[1763588735523,0.2,135.51,135.5,11.56882769]
[1763588736050,0.2,135.51,135.5,30.15978769]
[1763588736250,0.2,135.51,135.5,29.68978769]
[1763588737214,0.91,135.51,135.5,11.56882769]
[1763588737426,0.91,135.51,135.5,1.78]
[1763588738244,0.2,135.51,135.5,1.78]
[1763588738933,0.91,135.51,135.5,1.78]
[1763588739744,0.2,135.51,135.5,1.78]
[1763588742924,0.2,135.51,135.5,30.15978769]
[1763588743124,0.2,135.51,135.5,37.53986149]
[1763588743430,0.2,135.51,135.5,30.15978769]
[1763588743830,0.2,135.51,135.5,30.89779507]
[1763588744954,0.2,135.51,135.5,29.68978769]
[1763588745950,0.2,135.51,135.5,11.56882769]
[1763588746250,0.91,135.51,135.5,1.78]
[1763588747047,0.2,135.51,135.5,1.78]
[1763588747219,0.91,135.51,135.5,1.78]
[1763588747428,0.91,135.51,135.5,11.56882769]
[1763588747627,0.91,135.51,135.5,1.78]
[1763588749725,0.2,135.51,135.5,1.78]
[1763588749928,0.88,135.51,135.5,1.78]
[1763588750340,0.2,135.51,135.5,1.78]
[1763588751021,0.2,135.51,135.5,11.56882769]
[1763588752126,0.88,135.51,135.5,11.56882769]
[1763588752839,0.88,135.51,135.5,1.78]
[1763588753429,0.88,135.51,135.42,7.38418699]
[1763588753430,0.88,135.51,135.42,9.78882769]
[1763588753723,0.68,135.5,135.45,18.12096]
[1763588753930,0.68,135.5,135.39,0.47]
[1763588754243,0.68,135.5,135.41,9.78882769]
[1763588755128,0.68,135.5,135.43,9.78882769]
[1763588755341,0.68,135.5,135.44,1.78]
[1763588761163,0.68,135.5,135.38,1.78]
[1763588761366,18.12096,135.49,135.39,9.78882769]
[1763588761730,0.68,135.48,135.39,9.78882769]
[1763588761934,0.68,135.48,135.4,1.78]
[1763588763068,18.12096,135.47,135.37,11.56882769]
[1763588763248,18.12096,135.44,135.3,34.02992914]
[1763588763448,18.12096,135.44,135.3,0.47]
[1763588763661,0.68,135.43,135.35,9.78882769]
[1763588763881,0.68,135.43,135.35,11.56882769]
[1763588764947,0.68,135.43,135.35,29.68978769]
[1763588765182,0.68,135.43,135.35,30.15978769]
[1763588765673,0.68,135.43,135.39,9.78882769]
[1763588765871,0.68,135.43,135.39,11.56882769]
[1763588767072,0.68,135.45,135.39,12.03882769]
[1763588767380,0.68,135.45,135.41,9.78882769]
[1763588767581,0.68,135.45,135.39,1.78]
[1763588767782,0.68,135.45,135.38,19.90096]
[1763588768286,0.68,135.45,135.39,9.78882769]
[1763588768454,0.68,135.47,135.4,0.47]
[1763588768659,0.68,135.47,135.41,9.78882769]
[1763588768971,0.68,135.47,135.42,1.78]
[1763588769482,0.68,135.47,135.35,0.47]
[1763588769684,0.68,135.47,135.28,71.90979279]
[1763588769685,0.68,135.47,135.4,9.78882769]
[1763588769884,0.68,135.47,135.41,1.78]
[1763588770884,0.68,135.47,135.42,9.78882769]
[1763588771972,0.2,135.51,135.43,0.47]
[1763588771973,0.68,135.5,135.43,0.47]
[1763588772162,0.68,135.5,135.44,9.78882769]
[1763588772480,0.2,135.51,135.46,9.78882769]
[1763588772993,0.2,135.51,135.5,9.78882769]
[1763588773175,0.2,135.51,135.5,11.56882769]
[1763588773373,0.2,135.51,135.5,12.03882769]
[1763588774583,0.2,135.56,135.54,9.78882769]
[1763588774777,0.2,135.56,135.55,11.56882769]
[1763588775098,0.68,135.64,135.59,9.78882769]
[1763588775287,0.1,135.65,135.61,9.78882769]
[1763588775582,0.78,135.65,135.61,9.78882769]
[1763588776363,0.78,135.65,135.59,9.78882769]
[1763588776559,0.78,135.65,135.62,1.78]
[1763588776782,0.78,135.65,135.59,9.78882769]
[1763588776980,0.78,135.65,135.62,1.78]
[1763588778267,0.78,135.65,135.63,9.78882769]
[1763588778681,0.1,135.65,135.63,9.78882769]
[1763588779094,0.1,135.65,135.64,11.56882769]
[1763588780068,0.79,135.65,135.64,11.56882769]
[1763588780398,0.79,135.65,135.57,0.72]
[1763588780588,0.79,135.65,135.58,1.78]
[1763588780982,0.79,135.65,135.59,0.72]
[1763588781290,0.1,135.65,135.59,0.72]
[1763588782369,0.1,135.65,135.64,9.78882769]
[1763588782568,0.1,135.65,135.64,11.56882769]
[1763588783391,0.1,135.65,135.64,1.78]
[1763588783392,0.79,135.65,135.64,1.78]
[1763588785573,0.1,135.65,135.64,1.78]
[1763588787587,0.78,135.65,135.6,27.90978769]
[1763588787788,0.78,135.65,135.6,1.78]
[1763588787996,18.90096,135.65,135.54,0.72]
[1763588788311,18.90096,135.65,135.55,1.78]
[1763588788472,0.68,135.64,135.55,19.90096]
[1763588788670,0.68,135.64,135.54,9.78882769]
[1763588788869,0.68,135.64,135.51,0.72]
[1763588788870,0.68,135.64,135.55,1.78]
[1763588789118,0.68,135.64,135.55,19.90096]
[1763588789295,0.68,135.64,135.55,1.78]
[1763588789470,18.12096,135.63,135.55,1.78]
[1763588789898,0.68,135.62,135.55,1.78]
[1763588791921,0.68,135.62,135.56,9.78882769]
[1763588793000,0.78,135.65,135.58,9.78882769]
[1763588793203,0.78,135.65,135.6,9.78882769]
[1763588794004,0.78,135.65,135.54,18.84096]
[1763588794188,0.78,135.65,135.55,11.56882769]
[1763588794389,0.78,135.65,135.55,12.28882769]
[1763588794695,0.78,135.65,135.56,18.12096]
[1763588794898,0.78,135.65,135.57,11.56882769]
[1763588798493,0.78,135.65,135.57,1.78]
[1763588799307,0.78,135.65,135.56,1.78]
[1763588801074,0.78,135.65,135.57,9.78882769]
[1763588801418,0.78,135.65,135.56,1.78]
[1763588802386,18.12096,135.61,135.56,1.78]
[1763588802799,0.68,135.6,135.52,11.56882769]
[1763588803302,0.68,135.6,135.52,1.78]
[1763588803478,0.68,135.6,135.5,9.78882769]
[1763588803684,0.68,135.6,135.51,1.78]
[1763588804098,0.68,135.6,135.48,0.72]
[1763588804294,0.68,135.6,135.49,11.56882769]
[1763588805378,0.68,135.6,135.5,0.72]
[1763588805583,18.80096,135.6,135.5,0.72]
[1763588806000,0.68,135.59,135.5,0.72]
[1763588807503,0.68,135.59,135.49,29.68978769]
[1763588808014,1.78,135.58,135.49,1.78]
[1763588808317,18.12096,135.56,135.49,1.78]
[1763588808686,0.68,135.55,135.49,1.78]
[1763588809713,0.68,135.55,135.49,2.5]
[1763588809910,0.68,135.55,135.5,0.68]
[1763588810112,0.72,135.57,135.5,0.68]
[1763588812624,0.72,135.57,135.51,9.78882769]
[1763588813520,0.72,135.57,135.52,0.68]
[1763588814321,18.12096,135.6,135.52,62.78]
[1763588814531,0.72,135.59,135.53,9.78882769]
[1763588814690,0.72,135.59,135.54,1.78]
[1763588815090,0.72,135.59,135.54,2.46]
[1763588815616,0.72,135.61,135.55,0.68]
[1763588815791,1.88,135.65,135.55,0.68]
[1763588815792,0.72,135.59,135.55,0.68]
[1763588816314,0.1,135.65,135.55,0.68]
[1763588816513,0.72,135.61,135.55,0.68]
[1763588816814,0.72,135.61,135.56,9.78882769]
[1763588817312,0.72,135.61,135.56,10.46882769]
[1763588820420,0.72,135.64,135.58,9.78882769]
[1763588820601,0.72,135.64,135.6,9.78882769]
[1763588821118,0.72,135.64,135.59,1.78]
[1763588821634,0.72,135.64,135.59,2.46]
[1763588821806,0.72,135.64,135.59,1.78]
[1763588822326,18.84096,135.64,135.59,1.78]
[1763588822701,0.72,135.63,135.53,0.68]
[1763588822904,5.66269794,135.63,135.54,11.56882769]
[1763588823106,0.72,135.62,135.54,12.24882769]
[1763588824008,0.72,135.62,135.54,11.56882769]
[1763588824395,18.12096,135.6,135.54,1.78]
[1763588824602,18.12096,135.61,135.48,0.68]
[1763588824812,23.78682568,135.6,135.49,1.78]
[1763588825014,20.62096,135.6,135.5,0.68]
[1763588825326,5.66694763,135.59,135.5,9.78882769]
[1763588825531,18.12096,135.56,135.49,1.78]
[1763588825842,18.12096,135.56,135.49,2.46]
[1763588825998,0.72,135.55,135.49,1.78]
[1763588828207,18.12096,135.58,135.5,10.46882769]
[1763588828426,0.72,135.57,135.5,10.46882769]
[1763588828627,0.72,135.57,135.51,0.68]
[1763588828837,18.12096,135.61,135.51,0.68]
[1763588829008,0.72,135.58,135.51,0.68]
[1763588829199,8.23021485,135.65,135.51,0.68]
[1763588829200,0.72,135.6,135.51,0.68]
[1763588830519,18.12096,135.59,135.51,0.68]
[1763588831132,0.72,135.59,135.51,0.68]
[1763588831922,0.72,135.62,135.54,9.78882769]
[1763588832232,0.72,135.62,135.55,1.78]
[1763588832418,0.72,135.62,135.5,11.56882769]
[1763588832623,0.72,135.62,135.5,12.24882769]
[1763588832624,18.12096,135.59,135.5,12.24882769]
[1763588832822,0.72,135.58,135.5,12.24882769]
[1763588833438,0.72,135.58,135.51,0.68]
[1763588834840,0.72,135.58,135.52,9.78882769]
[1763588835555,0.72,135.58,135.51,9.78882769]
[1763588836063,0.72,135.58,135.51,10.46882769]
[1763588836221,20.13050424,135.73,135.52,0.68]
[1763588836222,0.72,135.6,135.52,0.68]
[1763588839559,0.72,135.6,135.51,10.46882769]
[1763588840061,18.12096,135.58,135.5,1.78]
[1763588840557,0.71,135.57,135.5,1.78]
[1763588840938,18.12096,135.56,135.5,1.78]
[1763588841351,0.71,135.55,135.5,1.78]
[1763588841850,18.83096,135.55,135.5,1.78]
[1763588842227,0.71,135.54,135.5,1.78]
[1763588843828,0.71,135.54,135.5,2.44]
[1763588845759,19.90096,135.59,135.5,2.44]
[1763588845963,0.65,135.56,135.5,63.88]
[1763588846262,18.12096,135.55,135.5,63.88]
[1763588846666,0.65,135.54,135.5,63.88]
[1763588847370,0.65,135.54,135.5,1.78]
[1763588847667,18.12096,135.53,135.46,11.56882769]
[1763588847875,18.12096,135.53,135.46,9.78882769]
[1763588848049,0.65,135.52,135.46,9.78882769]
[1763588848769,0.65,135.52,135.46,0.69]
[1763588848947,0.65,135.52,135.45,2.47]
[1763588849360,18.12096,135.56,135.46,10.47882769]
[1763588849561,0.65,135.54,135.46,10.47882769]
[1763588849769,6.13021486,135.61,135.48,9.78882769]
[1763588849976,0.65,135.56,135.5,9.78882769]
[1763588850298,28.57396981,135.65,135.54,9.78882769]
[1763588850579,0.1,135.65,135.56,9.78882769]
[1763588850749,0.65,135.64,135.56,10.47882769]
[1763588850950,0.65,135.64,135.58,9.78882769]
[1763588851150,0.65,135.64,135.59,1.78]
[1763588851350,0.65,135.64,135.6,9.78882769]
[1763588851771,0.1,135.65,135.6,10.47882769]
[1763588851969,0.1,135.65,135.61,0.69]
[1763588852161,0.75,135.65,135.6,9.78882769]
[1763588852353,0.75,135.65,135.6,10.47882769]
[1763588853457,18.87096,135.65,135.6,10.47882769]
[1763588854073,0.75,135.65,135.6,10.47882769]
[1763588856165,0.1,135.65,135.62,9.78882769]
[1763588856769,0.1,135.65,135.62,11.56882769]
[1763588857586,0.1,135.65,135.62,12.25882769]
[1763588857781,0.1,135.65,135.59,9.78882769]
[1763588857981,18.12096,135.62,135.53,0.69]
[1763588858279,4.94855271,135.61,135.53,0.69]
[1763588858487,18.12096,135.62,135.53,0.69]
[1763588858660,4.94815497,135.61,135.53,0.69]
[1763588859585,18.12096,135.64,135.53,20.59096]
[1763588859787,18.12096,135.64,135.55,9.78882769]
[1763588859958,0.1,135.65,135.59,9.78882769]
[1763588860280,0.1,135.65,135.6,0.69]
[1763588862264,0.1,135.65,135.59,1.78]
[1763588862474,0.1,135.65,135.59,2.47]
[1763588863877,0.1,135.65,135.59,0.69]
[1763588865604,0.1,135.65,135.57,11.56882769]
[1763588865814,0.1,135.65,135.55,0.69]
[1763588866102,18.12096,135.62,135.55,0.69]
[1763588866291,1.78,135.62,135.53,1.78]
[1763588866465,18.12096,135.59,135.53,1.78]
[1763588867458,18.12096,135.6,135.53,1.78]
[1763588868362,18.12096,135.6,135.54,9.78882769]
[1763588868567,18.12096,135.64,135.54,10.47882769]
[1763588868870,18.12096,135.64,135.55,0.69]
[1763588869271,0.1,135.65,135.55,0.69]
[1763588870290,23.16453793,135.65,135.55,0.69]
[1763588870493,18.22096,135.65,135.55,0.69]
[1763588871168,0.1,135.65,135.55,0.69]
[1763588871718,0.1,135.65,135.58,9.78882769]
[1763588871898,0.1,135.65,135.6,9.78882769]
[1763588872266,0.1,135.65,135.61,0.67]
[1763588875978,0.1,135.65,135.62,9.78882769]
[1763588876183,0.1,135.65,135.63,1.78]
[1763588876371,0.2,135.68,135.64,9.78882769]
[1763588876573,0.2,135.68,135.65,0.67]
[1763588880800,0.11,135.67,135.62,1.78]
[1763588881101,0.2,135.68,135.62,1.78]
[1763588881403,0.2,135.68,135.62,2.45]
[1763588881715,0.2,135.68,135.63,0.67]
[1763588883089,0.2,135.68,135.64,10.52607334]
[1763588883284,0.2,135.69,135.64,27.90978769]
[1763588883488,0.2,135.69,135.65,0.67]
[1763588883686,0.2,135.69,135.67,9.78882769]
[1763588883909,0.61,135.78,135.67,9.78882769]
[1763588884108,0.1,135.78,135.68,0.67]
[1763588884309,0.51,135.77,135.68,0.67]
[1763588885296,18.63096,135.77,135.68,0.67]
[1763588885513,0.51,135.76,135.69,9.78882769]
[1763588885698,0.51,135.76,135.7,1.78]
[1763588885897,0.51,135.76,135.7,2.45]
[1763588886112,0.1,135.78,135.71,10.45882769]
[1763588886504,0.1,135.78,135.72,0.67]
[1763588887209,0.51,135.77,135.72,0.67]
[1763588888432,0.51,135.77,135.7,1.78]
[1763588888627,0.51,135.77,135.7,2.45]
[1763588889123,18.63096,135.77,135.67,18.79096]
[1763588889326,18.63096,135.77,135.67,1.78]
[1763588889498,15.21414912,135.76,135.67,1.78]
[1763588889815,10.29882769,135.76,135.67,1.78]
[1763588889995,18.12096,135.73,135.67,1.78]
[1763588890394,18.63096,135.73,135.67,1.78]
[1763588890597,18.63096,135.73,135.68,0.67]
[1763588891119,0.51,135.75,135.68,0.67]
[1763588891298,0.51,135.75,135.67,1.78]
[1763588891627,0.51,135.75,135.67,2.45]
[1763588893122,5.43343344,135.75,135.67,0.67]
[1763588893306,18.63096,135.74,135.66,1.78]
[1763588893506,18.12096,135.71,135.64,0.67]
[1763588893720,18.12096,135.7,135.64,0.67]
[1763588894516,0.51,135.71,135.64,0.67]
[1763588897025,0.51,135.77,135.65,9.78882769]
[1763588897229,0.51,135.76,135.65,71.88882769]
[1763588897431,18.63096,135.76,135.66,0.67]
[1763588897732,4.93152397,135.75,135.66,0.67]
[1763588897944,5.44152397,135.75,135.66,0.67]
[1763588898821,0.51,135.74,135.66,0.67]
[1763588899025,0.51,135.74,135.67,1.78]
[1763588899324,5.44152397,135.74,135.67,1.78]
[1763588899503,18.12096,135.72,135.67,1.78]
[1763588899928,18.12096,135.75,135.67,1.78]
[1763588900240,0.51,135.71,135.67,1.78]
[1763588900910,18.12096,135.74,135.68,0.66]
[1763588901111,0.51,135.77,135.68,0.66]
[1763588901317,18.12096,135.76,135.68,0.66]
[1763588901756,0.51,135.76,135.68,0.66]
[1763588902036,0.51,135.75,135.68,0.66]
[1763588902239,0.51,135.75,135.66,12.22882769]
[1763588902542,5.43908595,135.75,135.67,0.66]
[1763588902712,0.51,135.74,135.67,0.66]
[1763588903436,4.92908595,135.75,135.67,0.66]
[1763588903742,0.51,135.75,135.67,0.66]
[1763588903914,18.12096,135.76,135.67,0.66]
[1763588904111,18.12096,135.72,135.64,0.66]
[1763588904316,18.12096,135.72,135.65,0.66]
[1763588904714,18.63096,135.75,135.65,0.66]
[1763588904926,4.93404448,135.74,135.66,9.78882769]
[1763588905139,5.54404448,135.78,135.66,90.00978769]
[1763588905350,0.61,135.78,135.67,0.66]
[1763588905534,18.73096,135.78,135.67,0.66]
[1763588905843,4.93404448,135.77,135.67,0.66]
[1763588906023,18.73096,135.78,135.67,0.66]
[1763588906223,18.12096,135.77,135.67,0.66]
[1763588906852,0.1,135.78,135.68,9.78882769]
[1763588907033,0.1,135.78,135.7,9.78882769]
[1763588907533,0.61,135.78,135.71,0.69]
[1763588907861,0.61,135.78,135.71,2.47]
[1763588908019,18.12096,135.77,135.7,1.78]
[1763588908424,18.63096,135.77,135.7,2.47]
[1763588909654,18.63096,135.77,135.71,0.69]
[1763588909858,18.12096,135.77,135.71,0.69]
[1763588910626,0.1,135.78,135.71,0.69]
[1763588911439,0.1,135.78,135.72,9.78882769]
[1763588911760,0.1,135.78,135.73,0.69]
[1763588912856,0.61,135.78,135.73,0.69]
[1763588913161,0.1,135.78,135.73,0.69]
[1763588913330,0.61,135.78,135.73,0.69]
[1763588913939,0.1,135.78,135.73,0.69]
[1763588914755,0.61,135.78,135.73,0.69]
[1763588914938,0.61,135.78,135.72,1.78]
[1763588915144,0.61,135.78,135.72,2.47]
[1763588916656,0.61,135.78,135.68,18.12096]
[1763588916845,5.55457162,135.78,135.7,0.69]
[1763588917357,18.12096,135.75,135.67,0.69]
[1763588917670,23.06553162,135.74,135.67,2.47]
[1763588917834,4.94457162,135.73,135.67,2.47]
[1763588918536,5.45457162,135.73,135.67,2.47]
[1763588919153,0.51,135.72,135.65,0.69]
[1763588919454,0.51,135.72,135.65,2.47]
[1763588920265,18.12096,135.7,135.65,1.78]
[1763588920433,18.12096,135.7,135.65,2.47]
[1763588920633,18.12096,135.7,135.66,0.69]
[1763588920950,0.51,135.72,135.66,0.69]
[1763588921256,18.12096,135.7,135.66,0.69]
[1763588921639,0.51,135.7,135.66,0.69]
[1763588922134,0.51,135.7,135.65,1.78]
[1763588923045,0.51,135.7,135.65,2.47]
[1763588923458,4.95312663,135.71,135.66,0.69]
[1763588923830,5.46312663,135.71,135.66,0.69]
[1763588924160,0.51,135.71,135.66,0.69]
[1763588924461,18.12096,135.71,135.66,0.69]
[1763588924658,18.12096,135.72,135.66,0.69]
[1763588924868,0.51,135.71,135.66,0.69]
[1763588925233,18.63096,135.71,135.66,0.69]
[1763588925545,18.63096,135.71,135.65,1.78]
[1763588925737,5.46330593,135.7,135.65,1.78]
[1763588925940,23.58453229,135.7,135.65,1.78]
[1763588926141,0.51,135.69,135.65,1.78]
[1763588926563,0.51,135.69,135.63,0.69]
[1763588926859,5.46466904,135.69,135.63,0.69]
[1763588927161,0.51,135.69,135.63,0.69]
[1763588927538,18.12096,135.68,135.63,0.69]
[1763588927956,18.63096,135.68,135.63,0.69]
[1763588928161,18.12096,135.68,135.63,0.69]
[1763588928362,18.12096,135.7,135.63,0.69]
[1763588928563,18.12096,135.71,135.63,0.69]
[1763588929947,175.17227897,135.76,135.64,9.78882769]
[1763588929948,18.12096,135.73,135.64,9.78882769]
[1763588930149,18.12096,135.73,135.65,0.67]
[1763588930351,6.78227898,135.78,135.66,9.78882769]
[1763588930558,0.51,135.77,135.68,9.78882769]
[1763588930740,0.51,135.77,135.67,2.45]
[1763588930741,18.12096,135.75,135.67,2.45]
[1763588930942,18.12096,135.75,135.68,0.67]
[1763588931466,0.51,135.77,135.68,0.67]
[1763588931662,18.63096,135.77,135.68,0.67]
[1763588931866,23.07198753,135.76,135.68,0.67]
[1763588932063,4.95134527,135.75,135.68,0.67]
[1763588932366,23.58230527,135.75,135.68,0.67]
[1763588932565,18.63096,135.75,135.68,0.67]
[1763588932741,5.46190035,135.74,135.67,1.78]
[1763588933067,5.46190035,135.74,135.67,2.45]
[1763588934063,0.51,135.73,135.67,2.45]
[1763588934254,4.95190035,135.74,135.68,0.67]
[1763588934455,5.46190035,135.74,135.68,0.67]
[1763588935798,5.46190035,135.74,135.67,1.78]
[1763588935799,0.51,135.73,135.67,1.78]
[1763588936377,0.51,135.73,135.56,80.5411682]
[1763588936378,18.12096,135.72,135.64,0.67]
[1763588936569,18.12096,135.7,135.64,0.67]
[1763588936982,0.51,135.69,135.62,0.67]
[1763588937981,5.46349636,135.69,135.62,0.67]
[1763588940684,4.95349636,135.69,135.62,0.67]
[1763588940887,18.12096,135.7,135.62,10.45882769]
[1763588941385,18.12096,135.7,135.63,0.67]
[1763588941386,0.51,135.69,135.63,0.67]
[1763588941576,5.46119152,135.69,135.63,0.67]
[1763588941757,0.51,135.68,135.63,0.67]
[1763588941957,0.51,135.68,135.58,9.78882769]
[1763588942188,0.51,135.68,135.62,0.67]
[1763588942382,4.95105944,135.69,135.62,0.67]
[1763588942584,18.12096,135.7,135.62,0.67]
[1763588942771,5.45963908,135.69,135.62,0.67]
[1763588942973,0.51,135.68,135.62,0.67]
[1763588943567,0.51,135.68,135.59,1.78]
[1763588943765,18.12096,135.66,135.59,0.67]
[1763588944182,18.63096,135.66,135.59,0.67]
[1763588944483,0.51,135.72,135.6,27.90978769]
[1763588944660,0.51,135.72,135.6,90.00978769]
[1763588944984,18.63096,135.72,135.62,9.78882769]
[1763588945190,4.94664203,135.71,135.63,1.78]
[1763588945367,6.17227898,135.75,135.63,1.78]
[1763588945368,18.63096,135.73,135.63,2.45]
[1763588945574,4.94609122,135.72,135.64,0.67]
[1763588946069,19.90096,135.72,135.64,0.67]
[1763588946389,5.45639274,135.71,135.64,0.67]
[1763588946774,0.51,135.7,135.64,0.67]
[1763588947793,4.94639274,135.71,135.64,0.67]
[1763588947794,23.06735274,135.71,135.64,0.67]
[1763588947969,18.12096,135.71,135.64,0.67]
[1763588948864,18.12096,135.72,135.64,0.67]
[1763588949175,5.45592344,135.71,135.64,0.67]
[1763588949779,0.51,135.7,135.64,0.67]
[1763588951167,0.51,135.7,135.61,0.67]
[1763588951371,18.12096,135.66,135.54,0.2]
[1763588951566,18.12096,135.66,135.56,9.78882769]
[1763588951766,2.29,135.65,135.55,0.67]
[1763588952292,0.51,135.64,135.55,0.67]
[1763588953297,18.12096,135.6,135.54,0.2]
[1763588953796,18.12096,135.56,135.54,0.2]
[1763588954304,18.63096,135.56,135.54,0.2]
[1763588954594,18.12096,135.56,135.54,0.2]
[1763588954797,18.12096,135.6,135.55,0.67]
[1763588957886,22.40905109,135.63,135.55,0.67]
[1763588958090,18.12096,135.62,135.55,0.67]
[1763588959709,18.63096,135.62,135.55,0.67]
[1763588960597,0.51,135.61,135.55,0.67]
[1763588962811,0.51,135.61,135.54,0.2]
[1763588963114,18.12096,135.58,135.54,0.2]
[1763588963330,18.63096,135.58,135.54,0.2]
[1763588963499,0.51,135.57,135.54,0.2]
[1763588964344,18.12096,135.55,135.54,0.1]
[1763588964491,27.90978769,135.55,135.54,0.1]
[1763588964811,33.25942663,135.55,135.54,0.1]
[1763588965492,19.90096,135.57,135.54,0.1]
[1763588965703,20.31096,135.57,135.54,0.1]
[1763588966112,18.53096,135.56,135.54,0.1]
[1763588967192,0.41,135.55,135.54,0.1]
[1763588968190,18.12096,135.56,135.54,0.1]
[1763588968395,18.12096,135.56,135.55,0.66]
[1763588968619,0.41,135.61,135.55,0.66]
[1763588968817,18.12096,135.6,135.55,0.66]
[1763588969209,0.41,135.59,135.54,0.76]
[1763588969521,18.12096,135.6,135.54,0.76]
[1763588969692,0.41,135.61,135.54,0.76]
[1763588969900,32.72745277,135.63,135.54,0.76]
[1763588970224,1.78,135.65,135.55,9.78882769]
[1763588970442,18.12096,135.64,135.56,0.66]
[1763588970727,18.53096,135.64,135.56,0.66]
[1763588971110,0.41,135.63,135.56,0.66]
[1763588971422,18.12096,135.61,135.56,0.66]
[1763588971603,18.12096,135.61,135.54,0.1]
[1763588971919,18.12096,135.61,135.54,0.76]
[1763588972236,9.78882769,135.6,135.54,0.76]
[1763588972530,18.12096,135.57,135.54,0.1]
[1763588973316,18.53096,135.57,135.54,0.1]
[1763588974199,0.41,135.56,135.54,0.1]
[1763588974518,2.19,135.56,135.54,0.1]
[1763588974832,28.31978769,135.55,135.54,0.1]
[1763588977706,10.19882769,135.55,135.54,0.1]
[1763588979830,16.37110667,135.55,135.54,0.1]
[1763588980031,9.78882769,135.51,135.5,0.2]
[1763588980329,11.56882769,135.51,135.5,0.2]
[1763588980531,11.87882769,135.51,135.5,0.2]
[1763588981302,18.12096,135.52,135.5,0.2]
[1763588983331,20.21096,135.52,135.5,0.2]
[1763588984018,19.90096,135.52,135.5,0.2]
[1763588984228,18.12096,135.52,135.5,0.2]
[1763588984832,18.12096,135.54,135.5,0.86]
[1763588985039,0.31,135.53,135.5,0.2]
[1763588985235,28.21978769,135.53,135.5,0.2]
[1763588987423,4.92366611,135.52,135.5,0.2]
[1763588987631,1.78,135.51,135.5,0.2]
[1763588987806,18.12096,135.53,135.5,0.2]
[1763588988020,0.31,135.58,135.51,0.66]
[1763588988237,20.21096,135.58,135.51,0.66]
[1763588988441,20.21096,135.58,135.5,0.86]
[1763588988442,9.78882769,135.56,135.5,0.86]
[1763588988744,18.12096,135.53,135.5,0.2]
[1763588989242,18.12096,135.53,135.5,0.86]
[1763588989420,18.12096,135.53,135.51,0.66]
[1763588989735,1.78,135.55,135.51,0.66]
[1763588990035,29.68978769,135.56,135.5,0.2]
[1763588990236,9.78882769,135.54,135.5,0.2]
[1763588990434,19.90096,135.53,135.5,0.2]
[1763588990926,20.21096,135.53,135.5,0.2]
[1763588991125,18.43096,135.53,135.5,0.2]